bitfinex-derivatives/quotes_SOLF0:USTF0_20250914
["timestamp","ask_amount","ask_price","bid_price","bid_amount"]
[1757827722044,0.8335983,246.56,246.51,3.4074324]
[1757827722238,0.8335983,246.56,246.52,3.4074324]
[1757827722431,0.8335983,246.56,246.53,6.73]
[1757827722632,0.86416612,246.56,246.53,6.73]
[1757827722838,0.86416612,246.56,246.52,3.4074324]
[1757827723039,0.86416612,246.56,246.51,3.4074324]
[1757827723236,0.86416612,246.56,246.52,3.4074324]
[1757827723440,0.86416612,246.56,246.53,6.73]
[1757827723639,0.86416612,246.56,246.52,3.4074324]
[1757827723837,0.86416612,246.56,246.53,6.73]
[1757827724444,0.03056782,246.56,246.52,3.4074324]
[1757827724744,0.03056782,246.56,246.54,6.73]
[1757827725345,0.03056782,246.56,246.52,3.4074324]
[1757827725346,6.7,246.55,246.52,3.4074324]
[1757827725545,0.86416612,246.56,246.5,6.73]
[1757827725947,0.8335983,246.53,246.48,3.4074324]
[1757827726141,0.03056782,246.56,246.47,3.4074324]
[1757827726142,44.64,246.52,246.47,3.4074324]
[1757827726341,6.7,246.5,246.47,10.1374324]
[1757827727844,51.7535983,246.51,246.47,3.4074324]
[1757827728048,6.7,246.5,246.46,3.4074324]
[1757827728348,51.7535983,246.51,246.45,3.4074324]
[1757827728845,51.7535983,246.51,246.44,3.4074324]
[1757827728846,6.7,246.5,246.44,3.4074324]
[1757827729748,6.7,246.5,246.43,10.1374324]
[1757827730147,0.02737665,246.52,246.43,3.4074324]
[1757827730447,11.938141,246.65,246.52,6.73]
[1757827730748,11.938141,246.65,246.61,6.73]
[1757827730947,0.8335983,246.71,246.61,6.73]
[1757827733648,0.8335983,246.68,246.61,6.73]
[1757827734441,0.8335983,246.65,246.61,6.73]
[1757827734642,6.39,246.64,246.57,10.2550302]
[1757827737154,6.39,246.64,246.57,6.85]
[1757827738457,6.99,246.61,246.57,6.85]
[1757827738657,0.8335983,246.62,246.56,3.4050302]
[1757827738852,0.8335983,246.62,246.57,6.94]
[1757827739660,0.8335983,246.62,246.56,3.4050302]
[1757827739857,0.8335983,246.62,246.57,6.94]
[1757827741158,28.29,246.68,246.59,6.94]
[1757827741358,0.8335983,246.67,246.59,6.94]
[1757827741757,6.99,246.63,246.59,6.94]
[1757827742159,6.99,246.63,246.57,6.94]
[1757827742559,0.8335983,246.64,246.57,6.94]
[1757827751868,0.8335983,246.64,246.57,10.3450302]
[1757827752165,0.8335983,246.64,246.58,6.94]
[1757827754957,6.99,246.63,246.58,6.94]
[1757827755265,0.8335983,246.61,246.56,6.94]
[1757827755462,0.8335983,246.57,246.56,6.94]
[1757827756561,110.81819626,246.67,246.56,6.94]
[1757827756761,0.8335983,246.59,246.53,3.4050302]
[1757827756958,0.8335983,246.59,246.54,10.3450302]
[1757827757158,0.8335983,246.59,246.54,3.4050302]
[1757827757561,0.8335983,246.59,246.54,6.94]
[1757827758872,0.8335983,246.59,246.54,3.4050302]
[1757827759567,0.8335983,246.59,246.55,6.94]
[1757827759767,0.8335983,246.59,246.54,3.4050302]
[1757827760168,0.8335983,246.59,246.55,6.94]
[1757827760369,7.8235983,246.59,246.55,6.94]
[1757827760771,7.8235983,246.59,246.54,6.94]
[1757827760971,0.8335983,246.59,246.53,3.4050302]
[1757827761175,0.8335983,246.59,246.54,6.94]
[1757827761372,0.8335983,246.59,246.53,3.4050302]
[1757827762269,0.8335983,246.63,246.54,10.3450302]
[1757827762476,0.8335983,246.63,246.57,6.94]
[1757827762873,7.8235983,246.63,246.57,6.94]
[1757827763272,6.99,246.59,246.55,3.4050302]
[1757827763575,99.28,246.64,246.57,6.94]
[1757827763766,100.1135983,246.64,246.57,6.94]
[1757827765070,100.1135983,246.64,246.57,3.4050302]
[1757827765274,100.1135983,246.64,246.58,6.94]
[1757827765474,110.81819626,246.67,246.6,6.94]
[1757827765676,110.81819626,246.67,246.6,3.4050302]
[1757827765970,110.81819626,246.67,246.61,6.94]
[1757827766578,110.81819626,246.67,246.62,6.94]
[1757827766878,99.56,246.68,246.62,6.94]
[1757827773286,99.56,246.68,246.62,10.3450302]
[1757827774179,106.51,246.68,246.63,3.4050302]
[1757827774374,106.51,246.68,246.64,6.75]
[1757827774577,280.2635983,246.72,246.64,6.75]
[1757827774777,99.4,246.71,246.64,10.1550302]
[1757827775177,99.4,246.71,246.65,3.4050302]
[1757827775873,99.4,246.71,246.66,3.4050302]
[1757827776074,99.4,246.71,246.68,10.1550302]
[1757827776280,99.4,246.71,246.68,6.75]
[1757827777986,106.35,246.71,246.68,6.75]
[1757827778185,6.95,246.7,246.68,6.75]
[1757827780585,99.4,246.71,246.66,3.4050302]
[1757827780783,99.4,246.71,246.67,6.75]
[1757827781086,106.35,246.71,246.67,6.75]
[1757827781478,99.4,246.71,246.67,6.75]
[1757827781777,6.95,246.7,246.67,6.75]
[1757827782380,99.4,246.71,246.67,6.75]
[1757827782587,6.95,246.7,246.66,10.1550302]
[1757827783279,6.95,246.7,246.66,6.75]
[1757827784088,99.4,246.71,246.66,6.75]
[1757827784284,6.95,246.7,246.65,3.4050302]
[1757827785189,106.35,246.71,246.65,3.4050302]
[1757827785891,6.95,246.71,246.66,6.75]
[1757827786193,6.95,246.69,246.66,6.75]
[1757827787595,6.95,246.69,246.65,3.4050302]
[1757827787889,106.23,246.7,246.64,3.4050302]
[1757827788287,106.23,246.7,246.63,10.1550302]
[1757827790794,106.23,246.7,246.64,3.4050302]
[1757827792401,106.23,246.7,246.64,10.3850302]
[1757827793099,6.56,246.69,246.64,3.4050302]
[1757827793402,105.84,246.7,246.64,3.4050302]
[1757827801406,99.28,246.7,246.65,3.4050302]
[1757827802101,7.72074489,246.69,246.63,3.4050302]
[1757827802298,7.72074489,246.69,246.59,4.5527962]
[1757827802299,7.72074489,246.69,246.62,3.4050302]
[1757827803913,7.72074489,246.69,246.61,3.4050302]
[1757827804110,7.72074489,246.69,246.62,3.4050302]
[1757827804712,7.72074489,246.69,246.61,3.4050302]
[1757827805213,7.72074489,246.69,246.6,3.4050302]
[1757827805402,7.72074489,246.69,246.61,3.4050302]
[1757827806614,7.72074489,246.69,246.62,3.4050302]
[1757827806914,0.03104103,246.67,246.61,3.4050302]
[1757827807114,6.42,246.66,246.61,3.4050302]
[1757827807316,105.66,246.65,246.62,3.4050302]
[1757827809518,6.42,246.64,246.62,3.4050302]
[1757827811815,99.24,246.65,246.63,10.2350302]
[1757827812512,99.24,246.65,246.64,6.83]
[1757827813410,99.24,246.65,246.64,11.3827962]
[1757827814012,6.42,246.64,246.62,4.5527962]
[1757827814217,6.42,246.64,246.61,0.02610192]
[1757827814218,99.24,246.65,246.61,4.57889812]
[1757827814417,6.42,246.64,246.61,4.57889812]
[1757827814814,99.24,246.65,246.62,6.83]
[1757827815618,105.66,246.65,246.62,6.83]
[1757827816419,99.24,246.65,246.61,4.57889812]
[1757827816719,99.24,246.65,246.63,6.83]
[1757827817811,99.24,246.65,246.62,4.5527962]
[1757827818316,99.24,246.65,246.63,6.83]
[1757827821324,99.24,246.65,246.64,11.3827962]
[1757827821526,0.03104103,246.67,246.64,11.3827962]
[1757827822122,0.03104103,246.67,246.65,11.3827962]
[1757827822518,0.03104103,246.67,246.66,6.83]
[1757827822824,0.03104103,246.67,246.66,11.3827962]
[1757827823026,0.03104103,246.67,246.66,6.83]
[1757827824725,0.03104103,246.67,246.66,7.23]
[1757827824926,0.03104103,246.67,246.66,14.02929381]
[1757827825523,0.03104103,246.67,246.66,7.23]
[1757827826520,0.03104103,246.67,246.66,14.04295833]
[1757827826726,0.03104103,246.67,246.66,7.23]
[1757827830925,0.03104103,246.67,246.66,6.83]
[1757827831129,0.03104103,246.67,246.66,13.63487808]
[1757827831324,0.03104103,246.67,246.66,6.83]
[1757827831729,0.03104103,246.67,246.66,14.03487808]
[1757827834833,0.03104103,246.67,246.66,7.23]
[1757827835332,0.03104103,246.67,246.66,0.4]
[1757827835534,0.03104103,246.67,246.65,6.80487808]
[1757827835832,6.78104103,246.67,246.64,6.80487808]
[1757827836027,0.03104103,246.67,246.65,6.49]
[1757827836231,0.03104103,246.67,246.64,6.80487808]
[1757827836827,0.03104103,246.67,246.65,6.49]
[1757827837621,0.03104103,246.67,246.65,11.02259055]
[1757827838324,0.03104103,246.67,246.66,6.49]
[1757827840332,0.03104103,246.67,246.66,11.02160352]
[1757827840526,0.03104103,246.67,246.66,11.02162648]
[1757827840729,0.03104103,246.67,246.66,4.53162648]
[1757827840932,6.78104103,246.67,246.65,4.53162648]
[1757827841129,6.75,246.66,246.64,4.53162648]
[1757827841429,6.75,246.66,246.63,4.53162648]
[1757827843134,0.03104103,246.67,246.64,6.49]
[1757827843334,0.03104103,246.67,246.66,3.39937818]
[1757827844332,6.78104103,246.67,246.66,3.39937818]
[1757827845134,0.03104103,246.67,246.65,3.39937818]
[1757827845338,7.58230987,246.66,246.65,3.39937818]
[1757827846036,6.75,246.65,246.63,3.39937818]
[1757827846738,6.75,246.65,246.62,3.39937818]
[1757827847636,7.58230987,246.63,246.62,3.39937818]
[1757827847840,6.75,246.62,246.61,3.4254801]
[1757827849139,6.75,246.62,246.61,0.02610192]
[1757827852236,7.15,246.62,246.61,0.02610192]
[1757827855342,7.15,246.62,246.54,3.39937818]
[1757827855537,0.83230987,246.6,246.54,3.39937818]
[1757827856438,6.69979382,246.59,246.54,3.39937818]
[1757827856645,6.69979382,246.59,246.53,3.39937818]
[1757827857145,6.69979382,246.59,246.52,3.39937818]
[1757827857542,6.69979382,246.59,246.51,3.39937818]
[1757827857840,6.69979382,246.59,246.51,3.39809842]
[1757827858245,6.69979382,246.59,246.5,3.39809842]
[1757827858446,7.53210369,246.59,246.5,3.39809842]
[1757827860042,6.69979382,246.59,246.5,3.39809842]
[1757827862342,6.69979382,246.59,246.49,6.66]
[1757827862343,6.69979382,246.59,246.49,10.05809842]
[1757827865450,6.69979382,246.59,246.49,6.66]
[1757827867550,6.69979382,246.59,246.5,0.83230987]
[1757827871852,6.69979382,246.59,246.49,6.66]
[1757827872058,6.69979382,246.59,246.51,0.83230987]
[1757827877256,6.77,246.67,246.58,3.39809842]
[1757827877560,6.77,246.67,246.62,0.83230987]
[1757827877761,6.77,246.74,246.63,6.56]
[1757827877958,6.77,246.74,246.65,0.83230987]
[1757827879862,6.77,246.74,246.63,6.56]
[1757827882166,6.77,246.74,246.64,3.39809842]
[1757827882571,6.77,246.74,246.63,9.95809842]
[1757827882869,6.77,246.74,246.65,0.83230987]
[1757827884369,6.77,246.74,246.65,4.23040829]
[1757827885673,6.77,246.74,246.66,6.56]
[1757827885972,6.77,246.71,246.63,3.39809842]
[1757827886166,6.77,246.71,246.64,3.39809842]
[1757827886772,6.77,246.71,246.65,3.39809842]
[1757827887376,6.77,246.68,246.63,3.39809842]
[1757827887574,6.77,246.68,246.6,3.39809842]
[1757827888576,0.83230987,246.66,246.6,3.39809842]
[1757827888771,6.87,246.65,246.59,3.39809842]
[1757827888969,6.87,246.65,246.6,3.39809842]
[1757827889168,0.83230987,246.66,246.6,3.39809842]
[1757827889878,6.87,246.65,246.6,3.39809842]
[1757827890067,0.83230987,246.66,246.6,3.39809842]
[1757827890268,6.87,246.65,246.6,3.39809842]
[1757827890466,0.83230987,246.66,246.6,3.39809842]
[1757827890878,6.87,246.62,246.58,10.35809842]
[1757827891073,0.83230987,246.63,246.58,3.39809842]
[1757827891273,0.83230987,246.63,246.55,4.53162648]
[1757827891274,7.70230987,246.63,246.59,10.35809842]
[1757827891470,0.83230987,246.63,246.59,10.35809842]
[1757827891769,6.87,246.62,246.58,10.35809842]
[1757827892174,6.87,246.62,246.59,6.96]
[1757827892481,6.87,246.62,246.59,10.35809842]
[1757827893176,6.87,246.62,246.59,6.96]
[1757827893378,6.87,246.62,246.59,10.35809842]
[1757827894180,6.87,246.62,246.59,6.96]
[1757827894374,6.87,246.62,246.59,10.35809842]
[1757827894570,6.87,246.62,246.59,3.39809842]
[1757827894781,6.87,246.59,246.56,3.39809842]
[1757827895078,6.87,246.59,246.54,6.96]
[1757827895079,6.87,246.59,246.54,3.39809842]
[1757827895285,0.83230987,246.6,246.54,3.39809842]
[1757827895483,7.70230987,246.6,246.54,3.39809842]
[1757827896178,7.70230987,246.6,246.53,3.39809842]
[1757827898176,7.70230987,246.6,246.52,10.35809842]
[1757827898381,7.70230987,246.6,246.53,3.39809842]
[1757827898780,0.83230987,246.57,246.52,10.35809842]
[1757827898974,6.87,246.53,246.49,3.39809842]
[1757827899175,6.87,246.49,246.47,3.39809842]
[1757827899778,6.87,246.49,246.46,3.39809842]
[1757827900282,6.87,246.49,246.44,6.96]
[1757827900283,6.87,246.49,246.45,10.35809842]
[1757827901084,1.30314951,246.5,246.45,3.39809842]
[1757827901282,6.87,246.53,246.38,3.39809842]
[1757827901580,34.58,246.52,246.42,6.96]
[1757827902678,6.87,246.58,246.44,3.39809842]
[1757827902886,6.87,246.56,246.45,6.96]
[1757827922103,272.42,246.59,246.45,11.66124793]
[1757827922304,272.42,246.59,246.5,6.95]
[1757827923001,99.2,246.6,246.5,6.95]
[1757827923499,99.2,246.6,246.5,10.34809842]
[1757827923804,99.2,246.6,246.51,6.95]
[1757827927301,1.30314951,246.55,246.48,3.39809842]
[1757827927509,7.85314951,246.55,246.47,6.95]
[1757827928806,7.85314951,246.55,246.43,3.39809842]
[1757827929203,6.55,246.55,246.43,3.39809842]
[1757827929403,6.55,246.52,246.43,3.39809842]
[1757827931309,6.55,246.52,246.44,3.39809842]
[1757827934519,6.55,246.52,246.42,6.95]
[1757827934520,6.55,246.52,246.45,3.39809842]
[1757827935318,6.55,246.52,246.46,3.39809842]
[1757827938223,1.30314951,246.57,246.5,3.39809842]
[1757827938428,1.30314951,246.57,246.51,10.34809842]
[1757827938724,6.55,246.56,246.5,3.39809842]
[1757827939722,6.55,246.56,246.49,3.39809842]
[1757827939921,1.30314951,246.57,246.45,4.53162648]
[1757827939922,6.55,246.52,246.48,3.39809842]
[1757827940128,1.30314951,246.53,246.48,3.39809842]
[1757827940526,6.55,246.52,246.48,3.39809842]
[1757827940725,1.30314951,246.53,246.48,3.39809842]
[1757827942224,6.55,246.52,246.48,3.39809842]
[1757827942424,6.55,246.52,246.49,3.39809842]
[1757827942630,1.30314951,246.53,246.49,3.39809842]
[1757827943630,6.55,246.52,246.49,3.39809842]
[1757827944029,1.30314951,246.53,246.49,3.39809842]
[1757827944229,6.55,246.52,246.49,3.39809842]
[1757827944533,1.30314951,246.53,246.48,3.39809842]
[1757827944733,6.55,246.52,246.48,3.39809842]
[1757827944929,1.30314951,246.53,246.48,3.39809842]
[1757827945429,6.55,246.52,246.48,3.39809842]
[1757827945630,1.30314951,246.53,246.48,3.39809842]
[1757827945934,6.55,246.52,246.48,3.39809842]
[1757827946130,1.30314951,246.53,246.48,3.39809842]
[1757827946332,1.30314951,246.53,246.49,3.39809842]
[1757827947034,6.55,246.52,246.49,3.39809842]
[1757827947734,6.47,246.52,246.49,3.39809842]
[1757827948333,1.30314951,246.53,246.49,3.39809842]
[1757827948837,6.47,246.52,246.49,3.39809842]
[1757827949342,1.30314951,246.53,246.49,3.39809842]
[1757827949531,6.47,246.52,246.49,3.39809842]
[1757827949942,1.30314951,246.53,246.49,3.39809842]
[1757827950542,6.47,246.52,246.49,3.39809842]
[1757827950741,6.47,246.52,246.48,3.39809842]
[1757827951044,6.47,246.52,246.48,9.87809842]
[1757827951743,1.30314951,246.53,246.48,9.87809842]
[1757827951941,6.47,246.52,246.48,9.87809842]
[1757827953646,6.47,246.52,246.49,3.39809842]
[1757827954446,6.47,246.52,246.48,9.87809842]
[1757827955343,1.30314951,246.53,246.48,9.87809842]
[1757827956136,1.30314951,246.57,246.48,9.87809842]
[1757827956338,6.47,246.56,246.48,3.39809842]
[1757827957246,6.47,246.56,246.49,3.39809842]
[1757827957446,6.47,246.56,246.48,3.39809842]
[1757827958241,6.47,246.56,246.49,3.39809842]
[1757827960143,272.52,246.63,246.5,9.87809842]
[1757827960144,6.47,246.62,246.5,9.87809842]
[1757827960348,6.47,246.6,246.52,3.39809842]
[1757827960848,6.47,246.6,246.52,9.87809842]
[1757827962348,0.83353207,246.58,246.52,9.87809842]
[1757827962744,0.83353207,246.58,246.53,3.39809842]
[1757827962949,7.30353207,246.58,246.54,6.48]
[1757827964246,6.47,246.57,246.54,6.48]
[1757827964549,6.47,246.57,246.54,9.87809842]
[1757827964950,6.47,246.57,246.55,3.39809842]
[1757827965447,6.47,246.57,246.54,9.87809842]
[1757827969257,99.91353207,246.58,246.54,3.39809842]
[1757827969458,6.47,246.57,246.54,9.87809842]
[1757827972354,0.83353207,246.58,246.54,3.39809842]
[1757827972559,21.56,246.61,246.56,11.27162648]
[1757827972761,21.56,246.61,246.6,10.15100469]
[1757827972957,21.56,246.61,246.59,3.41100469]
[1757827973157,22.39353207,246.61,246.58,3.41100469]
[1757827973359,22.39353207,246.61,246.57,3.41100469]
[1757827973556,6.75,246.6,246.56,3.41100469]
[1757827974260,22.39353207,246.61,246.56,3.41100469]
[1757827974864,6.75,246.6,246.56,3.41100469]
[1757827975162,22.39353207,246.61,246.56,3.41100469]
[1757827975757,6.75,246.6,246.56,3.41100469]
[1757827975961,22.39353207,246.61,246.56,3.41100469]
[1757827976360,22.39353207,246.61,246.54,6.74]
[1757827976361,29.14353207,246.61,246.55,3.41100469]
[1757827976866,99.06,246.6,246.58,6.74]
[1757827977065,99.06,246.59,246.58,6.74]
[1757827977261,99.1,246.6,246.57,3.41100469]
[1757827977461,99.1,246.6,246.58,6.74]
[1757827977663,6.75,246.65,246.58,6.44]
[1757827977967,99.93353207,246.64,246.58,9.85100469]
[1757827978861,99.1,246.64,246.58,9.85100469]
[1757827979059,99.93353207,246.64,246.59,3.41100469]
[1757827979258,106.50353207,246.64,246.59,3.41100469]
[1757827979462,6.57,246.63,246.6,6.44]
[1757827979662,99.06,246.62,246.61,6.44]
[1757827980157,0.83353207,246.65,246.62,6.44]
[1757827980359,6.57,246.67,246.63,3.41100469]
[1757827980671,99.08,246.66,246.63,3.41100469]
[1757827981166,99.08,246.66,246.62,3.41100469]
[1757827981666,99.08,246.66,246.63,6.44]
[1757827981966,99.08,246.66,246.62,3.41100469]
[1757827982560,99.08,246.66,246.63,6.44]
[1757827982957,0.83353207,246.68,246.62,3.41100469]
[1757827983156,99.1,246.67,246.62,3.41100469]
[1757827983362,99.1,246.67,246.63,6.44]
[1757827983870,99.1,246.67,246.62,3.41100469]
[1757827984069,99.1,246.67,246.63,6.44]
[1757827984266,99.1,246.67,246.61,3.41100469]
[1757827984461,99.06,246.69,246.65,3.41100469]
[1757827984765,99.06,246.69,246.68,9.85100469]
[1757827985165,99.06,246.69,246.68,6.44]
[1757827986360,7.40353207,246.71,246.68,6.44]
[1757827986667,99.1,246.7,246.67,6.44]
[1757827987267,99.1,246.7,246.65,3.41100469]
[1757827987867,99.1,246.7,246.66,6.44]
[1757827988470,99.1,246.7,246.65,3.41100469]
[1757827989073,99.1,246.7,246.66,6.44]
[1757827989268,99.1,246.7,246.64,3.41100469]
[1757827989463,99.1,246.7,246.65,6.44]
[1757827989664,99.1,246.7,246.64,3.41100469]
[1757827989864,99.1,246.7,246.65,3.41100469]
[1757827990167,99.1,246.7,246.64,3.41100469]
[1757827991569,99.1,246.7,246.65,6.44]
[1757827991774,99.1,246.7,246.64,3.41100469]
[1757827992271,99.1,246.7,246.65,6.44]
[1757827993168,99.1,246.7,246.64,3.41100469]
[1757827993369,99.1,246.7,246.65,6.44]
[1757827993769,99.1,246.7,246.64,3.41100469]
[1757827993969,99.1,246.7,246.65,6.44]
[1757827994171,99.1,246.7,246.64,3.41100469]
[1757827994365,6.57,246.73,246.66,3.41100469]
[1757827994564,0.83353207,246.71,246.65,9.85100469]
[1757827994964,0.83353207,246.71,246.65,6.44]
[1757827996771,0.83353207,246.68,246.64,3.41100469]
[1757827996980,7.40353207,246.65,246.63,3.41100469]
[1757827999085,7.40353207,246.65,246.62,6.44]
[1757827999686,0.83353207,246.65,246.6,3.41100469]
[1757827999985,99.02,246.74,246.59,6.44]
[1757827999986,7.40353207,246.62,246.59,6.44]
[1757828000480,0.83353207,246.62,246.58,3.41100469]
[1757828000686,0.83353207,246.65,246.6,3.41100469]
[1757828000885,0.83353207,246.65,246.62,6.44]
[1757828001483,0.83353207,246.65,246.61,3.41100469]
[1757828001778,0.83353207,246.68,246.62,6.44]
[1757828002084,0.83353207,246.68,246.63,6.44]
[1757828002475,0.83353207,246.68,246.62,3.41100469]
[1757828002680,0.83353207,246.68,246.63,6.44]
[1757828003279,0.83353207,246.68,246.64,6.44]
[1757828003885,0.83353207,246.68,246.63,3.41100469]
[1757828004882,0.83353207,246.68,246.6,4.53162648]
[1757828004883,6.57,246.67,246.62,3.41100469]
[1757828005083,7.40353207,246.68,246.62,3.41100469]
[1757828006799,6.57,246.64,246.54,9.85100469]
[1757828007092,7.40353207,246.55,246.54,3.41100469]
[1757828007695,7.40353207,246.55,246.52,3.41100469]
[1757828008696,6.57,246.55,246.52,3.41100469]
[1757828012497,7.03,246.56,246.52,3.41100469]
[1757828013000,0.83353207,246.57,246.52,3.41100469]
[1757828013201,7.03,246.56,246.52,3.41100469]
[1757828014001,0.83353207,246.57,246.52,3.41100469]
[1757828014200,7.03,246.56,246.52,3.41100469]
[1757828014403,7.03,246.56,246.53,3.41100469]
[1757828015200,0.83353207,246.57,246.53,3.41100469]
[1757828015400,7.03,246.56,246.53,3.41100469]
[1757828017204,0.83353207,246.57,246.53,3.41100469]
[1757828017400,7.03,246.56,246.53,3.41100469]
[1757828017804,0.83353207,246.57,246.53,3.41100469]
[1757828018006,7.03,246.56,246.53,3.41100469]
[1757828018201,0.83353207,246.57,246.53,3.41100469]
[1757828018402,0.83353207,246.57,246.52,3.41100469]
[1757828018609,7.03,246.53,246.51,3.41100469]
[1757828019205,0.83353207,246.54,246.51,3.41100469]
[1757828019404,7.03,246.53,246.51,3.41100469]
[1757828020210,0.83353207,246.54,246.51,3.41100469]
[1757828020412,7.03,246.53,246.51,3.41100469]
[1757828021214,0.83353207,246.54,246.5,3.41100469]
[1757828021407,7.03,246.53,246.51,3.41100469]
[1757828021608,7.03,246.53,246.5,3.41100469]
[1757828022015,7.03,246.53,246.51,3.41100469]
[1757828022210,0.83353207,246.54,246.51,9.90100469]
[1757828022513,7.86353207,246.54,246.51,9.90100469]
[1757828023313,7.03,246.54,246.51,9.90100469]
[1757828025113,7.03,246.54,246.51,6.49]
[1757828025714,7.03,246.59,246.5,3.41100469]
[1757828028317,7.03,246.59,246.49,3.41100469]
[1757828029908,7.03,246.59,246.48,3.41100469]
[1757828030114,7.03,246.59,246.49,3.41100469]
[1757828030708,7.03,246.59,246.48,3.41100469]
[1757828033319,7.03,246.59,246.47,6.49]
[1757828035614,1.30250026,246.56,246.47,6.49]
[1757828035810,6.8,246.55,246.47,6.49]
[1757828038024,6.8,246.55,246.4,8.10737834]
[1757828038025,6.51,246.58,246.49,6.99]
[1757828040322,6.51,246.58,246.49,10.40100469]
[1757828043221,6.51,246.58,246.51,6.99]
[1757828043523,6.51,246.58,246.51,10.40100469]
[1757828047230,6.51,246.58,246.52,3.41100469]
[1757828047530,6.51,246.67,246.58,6.99]
[1757828047730,6.51,246.67,246.59,3.41100469]
[1757828048122,6.51,246.67,246.58,6.99]
[1757828048123,6.51,246.67,246.6,3.41100469]
[1757828049130,6.51,246.67,246.58,6.99]
[1757828049131,6.51,246.67,246.61,3.41100469]
[1757828049330,6.51,246.67,246.6,3.41100469]
[1757828050132,6.51,246.67,246.61,3.41100469]
[1757828050326,272.44,246.68,246.62,3.41100469]
[1757828050522,272.44,246.68,246.63,3.41100469]
[1757828050727,278.95,246.68,246.64,6.99]
[1757828051125,278.95,246.68,246.64,10.40100469]
[1757828051832,278.95,246.68,246.65,6.99]
[1757828052527,6.51,246.79,246.66,3.41100469]
[1757828052732,1.30250026,246.84,246.66,3.41100469]
[1757828052733,6.51,246.73,246.66,3.41100469]
[1757828054034,6.51,246.73,246.65,3.41100469]
[1757828054536,6.51,246.73,246.65,3.40330302]
[1757828055030,6.51,246.73,246.66,6.99]
[1757828055232,99.06,246.78,246.69,6.99]
[1757828055233,7.81250026,246.77,246.69,6.99]
[1757828055437,6.51,246.77,246.69,6.99]
[1757828055734,99.06,246.78,246.71,3.40330302]
[1757828055926,99.06,246.78,246.75,3.40330302]
[1757828056133,6.51,246.77,246.72,10.39330302]
[1757828056331,6.51,246.77,246.72,6.99]
[1757828056529,6.51,246.77,246.71,3.40330302]
[1757828056530,6.51,246.77,246.71,10.39330302]
[1757828056727,6.51,246.77,246.71,6.99]
[1757828056931,99.06,246.78,246.71,6.99]
[1757828057132,99.06,246.78,246.72,10.39330302]
[1757828057332,99.06,246.78,246.72,6.99]
[1757828057837,99.06,246.78,246.72,10.39330302]
[1757828058331,99.06,246.78,246.72,6.99]
[1757828059535,99.06,246.78,246.72,10.39330302]
[1757828059734,99.06,246.78,246.74,3.40330302]
[1757828060134,99.06,246.78,246.75,6.99]
[1757828060340,99.06,246.78,246.74,6.99]
[1757828060839,99.06,246.78,246.73,3.40330302]
[1757828061039,6.51,246.85,246.73,10.39330302]
[1757828061340,28.65,246.85,246.75,6.99]
[1757828062134,6.51,246.83,246.73,3.40330302]
[1757828062337,22.14,246.85,246.7,6.99]
[1757828062338,6.51,246.79,246.7,6.99]
[1757828063136,7.81250026,246.76,246.66,10.39330302]
[1757828063335,7.81250026,246.76,246.66,6.99]
[1757828063536,7.81250026,246.76,246.66,10.39330302]
[1757828063942,7.81250026,246.76,246.66,6.99]
[1757828064737,7.81250026,246.76,246.66,10.39330302]
[1757828065443,7.81250026,246.76,246.66,3.40330302]
[1757828065743,6.51,246.76,246.67,6.99]
[1757828066946,26.18,246.79,246.67,6.99]
[1757828072349,6.65,246.78,246.67,6.99]
[1757828072650,6.65,246.78,246.65,3.40330302]
[1757828073140,6.65,246.78,246.66,6.44]
[1757828078154,1.30250026,246.75,246.62,9.84330302]
[1757828078359,6.65,246.7,246.6,3.40330302]
[1757828078554,6.65,246.7,246.58,6.44]